[Event "10th Cesme Open-B 2024"]
[Site "Cesme"]
[Date "2024.06.24"]
[Round "2"]
[White "Asgharvand, Davood"]
[Black "Korkmaz, Necmettin"]
[Result "0-1"]
[ECO "C01"]
[WhiteElo "1881"]
[BlackElo "1999"]
[Annotator "NA RC"]
[PlyCount "88"]
[EventDate "2024.06.23"]
[EventType "swiss"]
[EventCountry "TUR"]
[SourceTitle "playchess.com"]
[Source "ChessBase"]
[SourceQuality "1"]
[TimeControl "5400+30"]

1. e4 {[%emt 0:03:00]} e6 {[%emt 0:01:00]} 2. d4 {[%emt 0:00:30]} d5 {[%emt 0:00:30]} 3. Nc3 {[%emt 0:00:30]} h6 {[%emt 0:01:30]} 4. Nf3 {[%emt 0:03:30]} Nf6 {[%emt 0:00:30]} 5. Bd3 {[%emt 0:00:30]} Bb4 {[%emt 0:01:30]} 6. exd5 {[%emt 0:05:30]} exd5 {[%emt 0:00:30]} 7. O-O {[%emt 0:00:30]} O-O {[%emt 0:00:30]} 8. Ne5 {[%emt 0:00:30]} c5 {[%emt 0:10:30]} 9. dxc5 {[%emt 0:04:30]} Bxc5 {[%emt 0:00:30]} 10. Qf3 {[%emt 0:00:30]} Nc6 {[%emt 0:00:30]} 11. Nxc6 {[%emt 0:00:30]} bxc6 {[%emt 0:00:30]} 12. Bf4 {[%emt 0:00:30]} Bg4 {[%emt 0:00:30]} 13. Qg3 {[%emt 0:00:30]} Qd7 {[%emt 0:00:30]} 14. Bxh6 {[%emt 0:13:30]} gxh6 {[%emt 0:39:30]} 15. h3 {[%emt 0:00:30]} Kg7 {[%emt 0:00:30]} 16. Be2 {[%emt 0:00:30]} h5 {[%emt 0:00:30]} 17. hxg4 {[%emt 0:00:30]} Nxg4 {[%emt 0:00:30]} 18. Rad1 {[%emt 0:00:30]} Bd6 {[%emt 0:00:30]} 19. Qh3 {[%emt 0:00:30]} f5 {[%emt 0:00:30]} 20. g3 {[%emt 0:00:30]} Rh8 {[%emt 0:00:30]} 21. Bf3 {[%emt 0:00:30]} h4 {[%emt 0:00:30]} 22. gxh4 {[%emt 0:00:30]} Qd8 {[%emt 0:00:30]} 23. h5 {[%emt 0:00:30]} Qg5 {[%emt 0:00:30]} 24. Bxg4 {[%emt 0:00:30]} fxg4 {[%emt 0:00:30]} 25. Qg2 {[%emt 0:00:30]} Rxh5 {[%emt 0:00:30]} 26. Ne4 {[%emt 0:00:30]} dxe4 {[%emt 0:00:30]} 27. Rxd6 {[%emt 0:00:30]} Rah8 {[%emt 0:00:30]} 28. Qxe4 {[%emt 0:00:30]} Rh1+ {[%emt 0:00:30]} 29. Qxh1 {[%emt 0:00:30]} Rxh1+ {[%emt 0:00:30]} 30. Kxh1 {[%emt 0:00:30]} Qh4+ {[%emt 0:00:30]} 31. Kg1 {[%emt 0:00:30]} g3 {[%emt 0:00:30]} 32. Rd7+ {[%emt 0:00:30]} Kg6 {[%emt 0:00:30]} 33. Rd6+ {[%emt 0:00:30]} Kh5 {[%emt 0:00:30]} 34. Kg2 {[%emt 0:00:30]} Qh2+ {[%emt 0:00:30]} 35. Kf3 {[%emt 0:00:30]} g2 {[%emt 0:00:30]} 36. Rfd1 {[%emt 0:00:30]} g1=Q {[%emt 0:00:30]} 37. Rxg1 {[%emt 0:00:30]} Qxd6 {[%emt 0:00:30]} 38. b3 {[%emt 0:00:30]} Qd2 {[%emt 0:00:30]} 39. Rg3 {[%emt 0:00:30]} Qxc2 {[%emt 0:00:30]} 40. Kg2 {[%emt 0:00:30]} Qxa2 {[%emt 0:00:30]} 41. Kg1 {[%emt 0:00:30]} a5 {[%emt 0:00:30]} 42. Kg2 {[%emt 0:00:30]} Qc2 {[%emt 0:00:30]} 43. Kg1 {[%emt 0:00:30]} c5 {[%emt 0:00:30]} 44. Kg2 {[%emt 0:00:30]} c4 {[%emt 0:00:30]} 0-1

[Event "10th Cesme Open-B 2024"]
[Site "Cesme"]
[Date "2024.06.24"]
[Round "2"]
[White "Colak, Tugay"]
[Black "Atis, Hasan"]
[Result "1/2-1/2"]
[ECO "B48"]
[WhiteElo "1878"]
[BlackElo "1988"]
[Annotator "NA RC"]
[PlyCount "114"]
[EventDate "2024.06.23"]
[EventType "swiss"]
[EventCountry "TUR"]
[SourceTitle "playchess.com"]
[Source "ChessBase"]
[SourceQuality "1"]
[TimeControl "5400+30"]

1. e4 {[%emt 0:01:00]} c5 {[%emt 0:01:00]} 2. Nf3 {[%emt 0:00:30]} e6 {[%emt 0:00:30]} 3. d4 {[%emt 0:00:30]} cxd4 {[%emt 0:00:30]} 4. Nxd4 {[%emt 0:00:30]} Nc6 {[%emt 0:00:30]} 5. Nc3 {[%emt 0:00:30]} Qc7 {[%emt 0:00:30]} 6. Be3 {[%emt 0:00:30]} a6 {[%emt 0:00:00]} 7. Qf3 {[%emt 0:00:00]} Ne5 {[%emt 0:00:00]} 8. Qg3 {[%emt 0:00:00]} h5 {[%emt 0:00:00]} 9. Nf5 {[%emt 0:00:00]} f6 {[%emt 0:00:00]} 10. O-O-O {[%emt 0:00:00]} Kf7 {[%emt 0:05:30]} 11. f4 {[%emt 0:05:30]} Ng6 {[%emt 0:13:30]} 12. Nd4 {[%emt 0:18:30]} h4 {[%emt 0:03:30]} 13. Qf2 {[%emt 0:03:30]} Bb4 {[%emt 0:06:30]} 14. Rd3 {[%emt 0:10:30]} b5 {[%emt 0:05:30]} 15. a3 {[%emt 0:01:30]} Bc5 {[%emt 0:02:30]} 16. Be2 {[%emt 0:07:30]} N8e7 {[%emt 0:09:30]} 17. Rhd1 {[%emt 0:01:30]} Rb8 {[%emt 0:00:30]} 18. g3 {[%emt 0:01:30]} hxg3 {[%emt 0:08:30]} 19. hxg3 {[%emt 0:00:30]} b4 {[%emt 0:01:30]} 20. axb4 {[%emt 0:00:30]} Bxb4 {[%emt 0:00:30]} 21. Nb3 {[%emt 0:02:30]} a5 {[%emt 0:13:30]} 22. Nc5 {[%emt 0:04:30]} Nf8 {[%emt 0:05:30]} 23. N3a4 {[%emt 0:06:30]} d5 {[%emt 0:05:22]} 24. Bf3 {[%emt 0:05:30]} dxe4 {[%emt 0:03:14]} 25. Bxe4 {[%emt 0:00:30]} Rb5 {[%emt 0:01:33]} 26. g4 {[%emt 0:06:30]} Rh3 {[%emt 0:02:46]} 27. Bd4 {[%emt 0:05:53]} Rxd3 {[%emt 0:00:03]} 28. Rxd3 {[%emt 0:00:27]} Nd7 {[%emt 0:02:48]} 29. Nxd7 {[%emt 0:02:58]} Bxd7 {[%emt 0:00:04]} 30. Bb6 {[%emt 0:01:01]} Qc8 {[%emt 0:06:06]} 31. Qd4 {[%emt 0:00:15]} Bc6 {[%emt 0:01:16]} 32. c4 {[%emt 0:04:38]} Bxe4 {[%emt 0:01:00]} 33. Qxe4 {[%emt 0:00:30]} Nd5 {[%emt 0:00:30]} 34. Kb1 {[%emt 0:00:30]} Rxb6 {[%emt 0:00:30]} 35. Rxd5 {[%emt 0:00:30]} exd5 {[%emt 0:00:30]} 36. Qxd5+ {[%emt 0:00:30]} Re6 {[%emt 0:00:30]} 37. f5 {[%emt 0:00:30]} Qc6 {[%emt 0:00:30]} 38. fxe6+ {[%emt 0:00:30]} Qxe6 {[%emt 0:00:30]} 39. Kc2 {[%emt 0:00:30]} Ke7 {[%emt 0:00:30]} 40. Qxe6+ {[%emt 0:00:30]} Kxe6 {[%emt 0:00:30]} 41. Kd3 {[%emt 0:00:30]} g6 {[%emt 0:00:30]} 42. Ke4 {[%emt 0:00:30]} Bd6 {[%emt 0:00:30]} 43. b3 {[%emt 0:00:30]} f5+ {[%emt 0:00:30]} 44. gxf5+ {[%emt 0:00:30]} gxf5+ {[%emt 0:00:30]} 45. Kd4 {[%emt 0:00:30]} Be5+ {[%emt 0:00:30]} 46. Ke3 {[%emt 0:00:30]} Kd6 {[%emt 0:00:30]} 47. Nb6 {[%emt 0:00:30]} Bh2 {[%emt 0:00:30]} 48. Nd5 {[%emt 0:00:30]} Be5 {[%emt 0:00:30]} 49. Kd3 {[%emt 0:00:30]} Kc5 {[%emt 0:00:30]} 50. Ne7 {[%emt 0:00:30]} f4 {[%emt 0:00:30]} 51. Ke4 {[%emt 0:00:30]} Bd6 {[%emt 0:00:30]} 52. Nd5 {[%emt 0:09:10]} Bb8 {[%emt 0:03:03]} 53. Ne7 {[%emt 0:00:30]} Bd6 {[%emt 0:00:30]} 54. Nd5 {[%emt 0:00:30]} Bb8 {[%emt 0:00:30]} 55. Ne7 {[%emt 0:00:30]} Bd6 {[%emt 0:00:30]} 56. Nd5 {[%emt 0:00:30]} Bb8 {[%emt 0:00:30]} 57. Ne7 {[%emt 0:00:30]} Bd6 {[%emt 0:00:00]} 1/2-1/2

[Event "10th Cesme Open-B 2024"]
[Site "Cesme"]
[Date "2024.06.24"]
[Round "2"]
[White "Selvi, Kaan"]
[Black "Buyuk, Eymen Eren"]
[Result "1-0"]
[ECO "C14"]
[WhiteElo "1871"]
[BlackElo "1894"]
[Annotator "NA RC"]
[PlyCount "139"]
[EventDate "2024.06.23"]
[EventType "swiss"]
[EventCountry "TUR"]
[SourceTitle "playchess.com"]
[Source "ChessBase"]
[SourceQuality "1"]
[TimeControl "5400+30"]

1. e4 {[%emt 0:01:00]} e6 {[%emt 0:03:00]} 2. d4 {[%emt 0:00:30]} d5 {[%emt 0:00:30]} 3. Nc3 {[%emt 0:00:30]} Nf6 {[%emt 0:00:00]} 4. Bg5 {[%emt 0:00:00]} Be7 {[%emt 0:00:00]} 5. e5 {[%emt 0:00:00]} Nfd7 {[%emt 0:00:30]} 6. Bxe7 {[%emt 0:00:30]} Qxe7 {[%emt 0:00:00]} 7. f4 {[%emt 0:00:30]} a6 {[%emt 0:00:00]} 8. Qg4 {[%emt 0:00:30]} O-O {[%emt 0:01:30]} 9. Nf3 {[%emt 0:01:30]} c5 {[%emt 0:01:30]} 10. Bd3 {[%emt 0:00:30]} f5 {[%emt 0:04:30]} 11. Qg5 {[%emt 0:01:30]} Qf7 {[%emt 0:02:30]} 12. g4 {[%emt 0:15:30]} cxd4 {[%emt 0:20:30]} 13. Nxd4 {[%emt 0:11:30]} fxg4 {[%emt 0:01:30]} 14. Qxg4 {[%emt 0:06:30]} Nc5 {[%emt 0:01:30]} 15. Nce2 {[%emt 0:01:30]} Nc6 {[%emt 0:01:30]} 16. Nf3 {[%emt 0:15:30]} Nxd3+ {[%emt 0:04:30]} 17. cxd3 {[%emt 0:00:30]} Nb4 {[%emt 0:02:30]} 18. Kd2 {[%emt 0:00:30]} Bd7 {[%emt 0:06:30]} 19. a3 {[%emt 0:01:30]} Nc6 {[%emt 0:00:00]} 20. Rhf1 {[%emt 0:04:30]} b5 {[%emt 0:13:00]} 21. Nfd4 {[%emt 0:03:30]} b4 {[%emt 0:00:30]} 22. Nxc6 {[%emt 0:01:30]} Bxc6 {[%emt 0:00:30]} 23. Nd4 {[%emt 0:00:30]} Bd7 {[%emt 0:00:00]} 24. Ke3 {[%emt 0:03:30]} Rab8 {[%emt 0:09:00]} 25. Rfc1 {[%emt 0:07:30]} Bc8 {[%emt 0:06:30]} 26. Rc2 {[%emt 0:03:18]} bxa3 {[%emt 0:01:30]} 27. bxa3 {[%emt 0:00:08]} Qa7 {[%emt 0:01:42]} 28. Rac1 {[%emt 0:00:40]} Bd7 {[%emt 0:00:31]} 29. h4 {[%emt 0:04:52]} Rf7 {[%emt 0:01:34]} 30. h5 {[%emt 0:01:21]} Rbf8 {[%emt 0:00:55]} 31. Rc7 {[%emt 0:03:20]} Qb6 {[%emt 0:00:30]} 32. Rxd7 {[%emt 0:00:30]} Rxd7 {[%emt 0:00:30]} 33. Qxe6+ {[%emt 0:00:00]} Qxe6 {[%emt 0:00:00]} 34. Nxe6 {[%emt 0:00:00]} Rb8 {[%emt 0:00:42]} 35. Rc6 {[%emt 0:00:35]} a5 {[%emt 0:03:27]} 36. Ra6 {[%emt 0:02:16]} Kf7 {[%emt 0:03:50]} 37. Nd4 {[%emt 0:01:26]} Rdb7 {[%emt 0:03:16]} 38. Rxa5 {[%emt 0:00:36]} Rd8 {[%emt 0:00:18]} 39. Nc6 {[%emt 0:00:30]} Rc8 {[%emt 0:00:30]} 40. Nb4 {[%emt 0:00:00]} g6 {[%emt 0:01:40]} 41. h6 {[%emt 0:02:47]} Rc1 {[%emt 0:01:48]} 42. Ra6 {[%emt 0:00:41]} Rc8 {[%emt 0:04:35]} 43. Nxd5 {[%emt 0:00:56]} Rd8 {[%emt 0:00:18]} 44. Ke4 {[%emt 0:00:38]} Re8 {[%emt 0:02:01]} 45. Nf6 {[%emt 0:01:00]} Re6 {[%emt 0:00:21]} 46. Rxe6 {[%emt 0:01:59]} Kxe6 {[%emt 0:00:30]} 47. d4 {[%emt 0:00:14]} Ra7 {[%emt 0:00:00]} 48. d5+ {[%emt 0:00:30]} Ke7 {[%emt 0:00:09]} 49. Nxh7 {[%emt 0:00:30]} Ra4+ {[%emt 0:00:30]} 50. Kf3 {[%emt 0:00:30]} Rxa3+ {[%emt 0:00:30]} 51. Kg4 {[%emt 0:00:30]} Ra1 {[%emt 0:00:00]} 52. Nf6 {[%emt 0:00:01]} Rg1+ {[%emt 0:00:00]} 53. Kf3 {[%emt 0:00:00]} Rh1 {[%emt 0:00:00]} 54. Kg2 {[%emt 0:00:20]} Rh4 {[%emt 0:00:15]} 55. h7 {[%emt 0:00:30]} Kf7 {[%emt 0:00:30]} 56. d6 {[%emt 0:00:30]} Ke6 {[%emt 0:00:30]} 57. d7 {[%emt 0:00:30]} Ke7 {[%emt 0:00:30]} 58. e6 {[%emt 0:00:30]} Rh6 {[%emt 0:00:30]} 59. Kg3 {[%emt 0:00:30]} Rh1 {[%emt 0:00:30]} 60. Kg2 {[%emt 0:00:30]} Rh4 {[%emt 0:00:30]} 61. Kg3 {[%emt 0:00:30]} Rh1 {[%emt 0:00:00]} 62. Kg4 {[%emt 0:00:46]} Rg1+ {[%emt 0:00:00]} 63. Kf3 {[%emt 0:00:09]} Rh1 {[%emt 0:00:00]} 64. Ke4 {[%emt 0:00:17]} Re1+ {[%emt 0:00:00]} 65. Kd5 {[%emt 0:00:03]} Rd1+ {[%emt 0:00:00]} 66. Ke5 {[%emt 0:00:21]} Re1+ {[%emt 0:00:01]} 67. Ne4 {[%emt 0:00:18]} Rh1 {[%emt 0:00:10]} 68. Ng5 {[%emt 0:00:09]} Rd1 {[%emt 0:02:17]} 69. Ke4 {[%emt 0:01:08]} Re1+ {[%emt 0:00:30]} 70. Kf3 {[%emt 0:00:00]} 1-0

[Event "10th Cesme Open-B 2024"]
[Site "Cesme"]
[Date "2024.06.24"]
[Round "2"]
[White "Altundal, Arda"]
[Black "Hasirci, Ozgur Deniz"]
[Result "0-1"]
[ECO "B90"]
[WhiteElo "1860"]
[BlackElo "1903"]
[Annotator "NA RC"]
[PlyCount "86"]
[EventDate "2024.06.23"]
[EventType "swiss"]
[EventCountry "TUR"]
[SourceTitle "playchess.com"]
[Source "ChessBase"]
[SourceQuality "1"]
[TimeControl "5400+30"]

1. e4 {[%emt 0:01:00]} c5 {[%emt 0:01:00]} 2. Nf3 {[%emt 0:00:30]} d6 {[%emt 0:00:00]} 3. d4 {[%emt 0:03:30]} cxd4 {[%emt 0:00:00]} 4. Nxd4 {[%emt 0:00:30]} Nf6 {[%emt 0:00:30]} 5. Nc3 {[%emt 0:00:30]} a6 {[%emt 0:00:30]} 6. a4 {[%emt 0:03:30]} e5 {[%emt 0:01:30]} 7. Nb3 {[%emt 0:00:30]} Be6 {[%emt 0:00:00]} 8. Bg5 {[%emt 0:00:30]} Be7 {[%emt 0:00:00]} 9. Bxf6 {[%emt 0:07:30]} Bxf6 {[%emt 0:01:30]} 10. Nd5 {[%emt 0:01:30]} Nd7 {[%emt 0:01:30]} 11. Bc4 {[%emt 0:01:30]} O-O {[%emt 0:03:30]} 12. O-O {[%emt 0:03:30]} Bg5 {[%emt 0:03:30]} 13. Qd3 {[%emt 0:02:30]} Rc8 {[%emt 0:09:30]} 14. a5 {[%emt 0:03:30]} Rc6 {[%emt 0:05:30]} 15. Ra4 {[%emt 0:01:30]} Qc8 {[%emt 0:06:30]} 16. g3 {[%emt 0:04:30]} Bd8 {[%emt 0:07:30]} 17. Ne3 {[%emt 0:03:30]} Nf6 {[%emt 0:05:30]} 18. Bxe6 {[%emt 0:01:30]} fxe6 {[%emt 0:01:30]} 19. c4 {[%emt 0:00:30]} Qc7 {[%emt 0:06:30]} 20. Rd1 {[%emt 0:07:30]} Qf7 {[%emt 0:01:30]} 21. Rb4 {[%emt 0:05:30]} b6 {[%emt 0:05:30]} 22. Ra4 {[%emt 0:02:30]} Nd7 {[%emt 0:01:30]} 23. Qe2 {[%emt 0:00:30]} bxa5 {[%emt 0:01:30]} 24. Nxa5 {[%emt 0:02:30]} Bxa5 {[%emt 0:00:30]} 25. Rxa5 {[%emt 0:00:30]} Nc5 {[%emt 0:00:30]} 26. Nc2 {[%emt 0:00:30]} Qc7 {[%emt 0:03:30]} 27. Ra3 {[%emt 0:02:30]} a5 {[%emt 0:04:30]} 28. Rda1 {[%emt 0:12:30]} a4 {[%emt 0:01:30]} 29. Rc3 {[%emt 0:03:30]} Qb6 {[%emt 0:00:30]} 30. Na3 {[%emt 0:01:30]} Nb3 {[%emt 0:01:30]} 31. Rb1 {[%emt 0:01:30]} Nd4 {[%emt 0:00:30]} 32. Qg4 {[%emt 0:03:46]} Rc7 {[%emt 0:01:30]} 33. Nc2 {[%emt 0:11:25]} Rcf7 {[%emt 0:04:30]} 34. Nxd4 {[%emt 0:00:23]} Qxd4 {[%emt 0:00:30]} 35. Qxe6 {[%emt 0:01:04]} Qxf2+ {[%emt 0:00:30]} 36. Kh1 {[%emt 0:00:30]} Qe2 {[%emt 0:00:00]} 37. Kg1 {[%emt 0:06:33]} Kh8 {[%emt 0:01:00]} 38. Qh3 {[%emt 0:00:22]} Qxe4 {[%emt 0:00:00]} 39. Rd1 {[%emt 0:01:40]} Rf2 {[%emt 0:01:00]} 40. c5 {[%emt 0:00:38]} dxc5 {[%emt 0:00:30]} 41. Rxc5 {[%emt 0:01:18]} Qe3 {[%emt 0:00:00]} 42. Qc8 {[%emt 0:00:49]} Rxc8 {[%emt 0:00:00]} 43. Rxc8+ {[%emt 0:00:30]} Rf8+ {[%emt 0:00:30]} 0-1

[Event "10th Cesme Open-B 2024"]
[Site "Cesme"]
[Date "2024.06.24"]
[Round "2"]
[White "Kolat, Ata"]
[Black "Yigit, Ahmet Yasir"]
[Result "0-1"]
[ECO "A45"]
[WhiteElo "1858"]
[BlackElo "1964"]
[Annotator "RC"]
[PlyCount "116"]
[EventDate "2024.06.23"]
[EventType "swiss"]
[EventCountry "TUR"]
[SourceTitle "playchess.com"]
[Source "ChessBase"]
[SourceQuality "1"]
[TimeControl "5400+30"]

1. d4 {[%emt 0:01:00]} Nf6 {[%emt 0:01:00]} 2. Bf4 {[%emt 0:00:00]} g6 {[%emt 0:01:30]} 3. Nc3 {[%emt 0:00:00]} d5 {[%emt 0:00:30]} 4. e3 {[%emt 0:00:30]} Bg7 {[%emt 0:00:30]} 5. h4 {[%emt 0:00:00]} c6 {[%emt 0:01:30]} 6. Nf3 {[%emt 0:01:00]} Bg4 {[%emt 0:00:30]} 7. Qd2 {[%emt 0:02:30]} Bxf3 {[%emt 0:01:30]} 8. gxf3 {[%emt 0:00:30]} Nbd7 {[%emt 0:00:30]} 9. O-O-O {[%emt 0:03:30]} Nh5 {[%emt 0:00:30]} 10. Bh2 {[%emt 0:01:30]} e5 {[%emt 0:00:30]} 11. dxe5 {[%emt 0:02:30]} Nxe5 {[%emt 0:00:00]} 12. Be2 {[%emt 0:00:30]} Qe7 {[%emt 0:10:00]} 13. f4 {[%emt 0:23:30]} Nd7 {[%emt 0:00:30]} 14. e4 {[%emt 0:11:30]} d4 {[%emt 0:04:30]} 15. Nb1 {[%emt 0:00:30]} O-O-O {[%emt 0:00:00]} 16. e5 {[%emt 0:06:30]} Nc5 {[%emt 0:02:00]} 17. Bxh5 {[%emt 0:04:30]} gxh5 {[%emt 0:00:30]} 18. f5 {[%emt 0:02:30]} Qxh4 {[%emt 0:02:30]} 19. Bf4 {[%emt 0:04:30]} Qg4 {[%emt 0:00:30]} 20. Rhg1 {[%emt 0:01:30]} Qxf5 {[%emt 0:00:30]} 21. Rg5 {[%emt 0:01:30]} Qe6 {[%emt 0:00:30]} 22. Rxg7 {[%emt 0:01:30]} Qxa2 {[%emt 0:00:30]} 23. Qb4 {[%emt 0:02:30]} b6 {[%emt 0:10:30]} 24. Qa3 {[%emt 0:04:30]} Qxa3 {[%emt 0:04:30]} 25. Nxa3 {[%emt 0:00:30]} Rd7 {[%emt 0:00:00]} 26. Bh2 {[%emt 0:02:30]} b5 {[%emt 0:02:00]} 27. f4 {[%emt 0:02:30]} Ne6 {[%emt 0:01:30]} 28. Rg2 {[%emt 0:00:56]} h6 {[%emt 0:02:30]} 29. f5 {[%emt 0:03:57]} Ng5 {[%emt 0:00:30]} 30. Bf4 {[%emt 0:01:35]} Nh3 {[%emt 0:05:30]} 31. Bd2 {[%emt 0:02:16]} Rd5 {[%emt 0:00:30]} 32. Rh1 {[%emt 0:00:50]} Ng5 {[%emt 0:01:30]} 33. Rxh5 {[%emt 0:00:41]} Nf3 {[%emt 0:00:00]} 34. Rxh6 {[%emt 0:00:30]} Rxh6 {[%emt 0:00:00]} 35. Bxh6 {[%emt 0:00:30]} Rxe5 {[%emt 0:00:00]} 36. b3 {[%emt 0:03:13]} Rxf5 {[%emt 0:00:00]} 37. Nb1 {[%emt 0:03:31]} Ne5 {[%emt 0:04:30]} 38. Nd2 {[%emt 0:01:37]} Ng6 {[%emt 0:02:30]} 39. Ne4 {[%emt 0:01:04]} Kc7 {[%emt 0:00:30]} 40. Bd2 {[%emt 0:01:33]} c5 {[%emt 0:00:00]} 41. c4 {[%emt 0:02:17]} Kc6 {[%emt 0:02:00]} 42. Ng3 {[%emt 0:01:29]} Rf3 {[%emt 0:01:30]} 43. Ne4 {[%emt 0:00:39]} Ne5 {[%emt 0:00:30]} 44. Rg5 {[%emt 0:00:31]} f5 {[%emt 0:00:30]} 45. Ng3 {[%emt 0:00:55]} Nxc4 {[%emt 0:00:30]} 46. Nxf5 {[%emt 0:00:43]} Rf1+ {[%emt 0:00:30]} 47. Kc2 {[%emt 0:00:30]} Rf2 {[%emt 0:00:00]} 48. Rg6+ {[%emt 0:00:22]} Kd7 {[%emt 0:05:00]} 49. Rg7+ {[%emt 0:00:25]} Ke6 {[%emt 0:00:00]} 50. Nxd4+ {[%emt 0:01:11]} cxd4 {[%emt 0:00:00]} 51. Kd3 {[%emt 0:00:00]} Nxd2 {[%emt 0:02:30]} 52. Kxd4 {[%emt 0:00:13]} a5 {[%emt 0:01:30]} 53. Ra7 {[%emt 0:00:45]} Rf5 {[%emt 0:01:30]} 54. Ra6+ {[%emt 0:00:40]} Kd7 {[%emt 0:00:30]} 55. Kc3 {[%emt 0:00:30]} Rd5 {[%emt 0:00:30]} 56. Rh6 {[%emt 0:00:00]} Kc7 {[%emt 0:00:00]} 57. Re6 {[%emt 0:00:11]} Kb7 {[%emt 0:00:00]} 58. Re2 {[%emt 0:01:08]} Nf3 {[%emt 0:03:30]} 0-1

[Event "10th Cesme Open-B 2024"]
[Site "Cesme"]
[Date "2024.06.24"]
[Round "2"]
[White "Mutlu, Burak Alp"]
[Black "Kocakaplan, Emre"]
[Result "1/2-1/2"]
[ECO "C76"]
[WhiteElo "1840"]
[BlackElo "1944"]
[Annotator "NA RC"]
[PlyCount "114"]
[EventDate "2024.06.23"]
[EventType "swiss"]
[EventCountry "TUR"]
[SourceTitle "playchess.com"]
[Source "ChessBase"]
[SourceQuality "1"]
[TimeControl "5400+30"]

1. e4 {[%emt 0:01:00]} e5 {[%emt 0:01:00]} 2. Nf3 {[%emt 0:00:00]} Nc6 {[%emt 0:00:30]} 3. Bb5 {[%emt 0:00:00]} a6 {[%emt 0:00:30]} 4. Ba4 {[%emt 0:00:30]} d6 {[%emt 0:00:00]} 5. O-O {[%emt 0:01:30]} Bd7 {[%emt 0:00:00]} 6. c3 {[%emt 0:00:30]} g6 {[%emt 0:00:00]} 7. d4 {[%emt 0:02:30]} Bg7 {[%emt 0:00:00]} 8. Re1 {[%emt 0:01:30]} Nge7 {[%emt 0:05:30]} 9. Be3 {[%emt 0:13:30]} O-O {[%emt 0:18:30]} 10. Nbd2 {[%emt 0:18:30]} exd4 {[%emt 0:13:30]} 11. Nxd4 {[%emt 0:14:30]} Ne5 {[%emt 0:06:30]} 12. Bc2 {[%emt 0:08:30]} N7c6 {[%emt 0:22:30]} 13. h3 {[%emt 0:07:30]} Nxd4 {[%emt 0:07:30]} 14. Bxd4 {[%emt 0:05:30]} c5 {[%emt 0:07:17]} 15. Be3 {[%emt 0:00:30]} b5 {[%emt 0:06:03]} 16. f4 {[%emt 0:09:50]} Nc6 {[%emt 0:00:02]} 17. Nf3 {[%emt 0:00:48]} Qe7 {[%emt 0:02:21]} 18. Qd5 {[%emt 0:02:26]} Rfc8 {[%emt 0:04:48]} 19. Rad1 {[%emt 0:01:45]} Be6 {[%emt 0:01:47]} 20. Qxd6 {[%emt 0:00:33]} Qxd6 {[%emt 0:00:22]} 21. Rxd6 {[%emt 0:00:30]} Bxa2 {[%emt 0:00:15]} 22. Ra1 {[%emt 0:01:51]} Bc4 {[%emt 0:00:38]} 23. Nd2 {[%emt 0:01:14]} Bf8 {[%emt 0:01:17]} 24. Nxc4 {[%emt 0:00:30]} bxc4 {[%emt 0:00:10]} 25. Rd5 {[%emt 0:00:29]} Rab8 {[%emt 0:00:54]} 26. Ra2 {[%emt 0:01:11]} Nd8 {[%emt 0:00:51]} 27. f5 {[%emt 0:00:30]} Rb6 {[%emt 0:00:30]} 28. Bd1 {[%emt 0:00:30]} Nb7 {[%emt 0:00:32]} 29. fxg6 {[%emt 0:04:15]} hxg6 {[%emt 0:00:30]} 30. Be2 {[%emt 0:00:30]} Re6 {[%emt 0:00:30]} 31. Bg4 {[%emt 0:00:30]} f5 {[%emt 0:00:30]} 32. Bf3 {[%emt 0:00:30]} Rd8 {[%emt 0:00:30]} 33. Bg5 {[%emt 0:01:46]} Rxd5 {[%emt 0:00:07]} 34. exd5 {[%emt 0:00:30]} Rb6 {[%emt 0:00:30]} 35. Be2 {[%emt 0:00:30]} Nd6 {[%emt 0:00:30]} 36. Bf4 {[%emt 0:00:30]} Kg7 {[%emt 0:00:30]} 37. Bxd6 {[%emt 0:00:30]} Bxd6 {[%emt 0:01:02]} 38. Bxc4 {[%emt 0:00:11]} a5 {[%emt 0:00:15]} 39. Kf1 {[%emt 0:01:13]} Rb8 {[%emt 0:00:59]} 40. b3 {[%emt 0:00:28]} Ra8 {[%emt 0:00:27]} 41. Ke2 {[%emt 0:00:30]} Re8+ {[%emt 0:00:09]} 42. Kd1 {[%emt 0:00:37]} Re3 {[%emt 0:00:37]} 43. Rxa5 {[%emt 0:00:48]} Rxc3 {[%emt 0:00:15]} 44. Ra6 {[%emt 0:00:39]} Bf4 {[%emt 0:00:17]} 45. Re6 {[%emt 0:00:25]} Rc1+ {[%emt 0:01:05]} 46. Ke2 {[%emt 0:00:30]} Rc2+ {[%emt 0:00:30]} 47. Kf3 {[%emt 0:00:30]} g5 {[%emt 0:00:30]} 48. g4 {[%emt 0:00:30]} Rc3+ {[%emt 0:00:30]} 49. Kf2 {[%emt 0:00:30]} Rc2+ {[%emt 0:00:30]} 50. Re2 {[%emt 0:00:30]} Rxe2+ {[%emt 0:00:30]} 51. Bxe2 {[%emt 0:00:30]} fxg4 {[%emt 0:00:30]} 52. Bxg4 {[%emt 0:00:30]} Kf6 {[%emt 0:00:30]} 53. Kf3 {[%emt 0:00:09]} Ke5 {[%emt 0:00:00]} 54. Be6 {[%emt 0:00:02]} Bc1 {[%emt 0:00:00]} 55. Kg4 {[%emt 0:00:33]} Kd6 {[%emt 0:00:00]} 56. Kf5 {[%emt 0:00:10]} Bd2 {[%emt 0:00:00]} 57. Ke4 {[%emt 0:00:30]} Bc1 {[%emt 0:00:00]} 1/2-1/2